fUST/lending_fUST_20240807
["ID","MTS","AMOUNT","RATE_DAILY","PERIOD"]
[334400084,1723029108126,-983.41,0.00036164,14]
[334400085,1723029108136,-1237.41,0.00036164,14]
[334400086,1723029108145,-901.85,0.00036164,14]
[334400087,1723029108157,-500.0,0.00036164,14]
[334400088,1723029108167,-500.0,0.00036164,14]
[334400089,1723029108179,-705.74,0.00036164,14]
[334400090,1723029108189,-867.95,0.00036164,14]
[334400091,1723029108200,-890.32,0.00036164,14]
[334400092,1723029108210,-500.0,0.00036164,14]
[334400093,1723029108220,-641.8,0.00036164,14]
[334400094,1723029108230,-663.8,0.00036164,14]
[334400095,1723029108240,-500.0,0.00036164,14]
[334400096,1723029108249,-500.0,0.00036164,14]
[334400097,1723029108259,-500.0,0.00036164,14]
[334400098,1723029108269,-500.0,0.00036164,14]
[334400099,1723029108279,-500.0,0.00036164,14]
[334400100,1723029108289,-610.03,0.00036164,14]
[334400101,1723029108298,-500.0,0.00036164,14]
[334400102,1723029108307,-500.0,0.00036164,14]
[334400103,1723029108317,-1049.44,0.00036164,14]
[334400104,1723029108327,-658.92,0.00036164,14]
[334400105,1723029108337,-634.91,0.00036164,14]
[334400106,1723029108346,-618.32,0.00036164,14]
[334400107,1723029108357,-841.16,0.00036164,14]
[334400108,1723029108367,-500.0,0.00036164,14]
[334400109,1723029108377,-508.16,0.00036164,14]
[334400110,1723029108386,-543.25,0.00036164,14]
[334400111,1723029108395,-2103.08,0.00036164,14]
[334400112,1723029108406,-1135.85,0.00036164,14]
[334400113,1723029108416,-500.0,0.00036164,14]
[334400114,1723029108426,-726.44,0.00036164,14]
[334400115,1723029108437,-606.85,0.00036164,14]
[334400116,1723029108447,-665.91,0.00036164,14]
[334400117,1723029108563,-782.36,0.00036164,14]
[334400118,1723029108574,-500.0,0.00036164,14]
[334400119,1723029108587,-653.76,0.00036164,14]
[334400120,1723029108598,-500.0,0.00036164,14]
[334400121,1723029108609,-394.66812304,0.00036164,14]
[334400122,1723029108621,-572.65,0.00036164,14]
[334400123,1723029108631,-552.06,0.00036164,14]
[334400124,1723029108643,-723.92,0.00036164,14]
[334400125,1723029108652,-2180.22,0.00036164,14]
[334400126,1723029108662,-531.95,0.00036164,14]
[334400127,1723029108672,-500.0,0.00036164,14]
[334400128,1723029108683,-738.14,0.00036164,14]
[334400129,1723029108694,-500.0,0.00036164,14]
[334400130,1723029108704,-364.71303942,0.00036164,14]
[334400131,1723029108715,-500.0,0.00036164,14]
[334400132,1723029108725,-500.0,0.00036164,14]
[334400133,1723029108735,-500.0,0.00036164,14]
[334400134,1723029108746,-500.0,0.00036164,14]
[334400135,1723029108757,-561.59,0.00036164,14]
[334400136,1723029108767,-526.38,0.00036164,14]
[334400137,1723029108778,-655.78,0.00036164,14]
[334400138,1723029108788,-500.0,0.00036164,14]
[334400139,1723029108800,-997.18,0.00036164,14]
[334400140,1723029108810,-1854.37,0.00036164,14]
[334400141,1723029108819,-500.0,0.00036164,14]
[334400142,1723029108829,-200.0,0.00036164,7]
[334400143,1723029108839,-1754.86,0.00036164,14]
[334400144,1723029108848,-637.98,0.00036164,14]
[334400145,1723029108859,-2280.75,0.00036164,14]
[334400146,1723029108871,-524.01,0.00036164,14]
[334400147,1723029108880,-500.0,0.00036164,14]
[334400148,1723029108889,-500.0,0.00036164,14]
[334400149,1723029108898,-528.8,0.00036164,14]
[334400150,1723029108907,-1498.25,0.00036164,14]
[334400151,1723029108917,-500.0,0.00036164,14]
[334400152,1723029108926,-693.96,0.00036164,14]
[334400153,1723029108937,-500.0,0.00036164,14]
[334400154,1723029108948,-524.30576211,0.00036164,14]
[334400155,1723029108958,-627.54,0.00036164,14]
[334400156,1723029108969,-3342.3,0.00036164,14]
[334400157,1723029108978,-531.99,0.00036164,14]
[334400158,1723029108988,-345.88414875,0.00036164,14]
[334400159,1723029108998,-1236.8,0.00036164,14]
[334400160,1723029109009,-500.0,0.00036164,14]
[334400161,1723029109023,-728.37,0.00036164,14]
[334400162,1723029109034,-1161.27,0.00036164,14]
[334400163,1723029109044,-372.16030927,0.00036164,14]
[334400164,1723029109058,-938.86,0.00036164,14]
[334400165,1723029109067,-3031.19,0.00036164,14]
[334400166,1723029109077,-500.0,0.00036164,14]
[334400167,1723029109087,-1919.23,0.00036164,14]
[334400168,1723029109099,-884.22,0.00036164,14]
[334400169,1723029109109,-1075.22,0.00036164,14]
[334400170,1723029109119,-1225.39,0.00036164,14]
[334400171,1723029109129,-799.55,0.00036164,14]
[334400172,1723029109138,-665.15,0.00036164,14]
[334400173,1723029109147,-578.83,0.00036164,14]
[334400174,1723029109157,-500.0,0.00036164,14]
[334400175,1723029109166,-500.0,0.00036164,14]
[334400176,1723029109175,-500.0,0.00036164,14]
[334400177,1723029109184,-1407.14,0.00036164,14]
[334400178,1723029109195,-538.06,0.00036164,14]
[334400179,1723029109204,-229.57690213,0.00036164,14]
[334400180,1723029109213,-1237.71,0.00036164,14]
[334400181,1723029109223,-3398.02,0.00036164,14]
[334400182,1723029109232,-2584.23,0.00036164,14]
[334400183,1723029109242,-798.6,0.00036164,14]
[334400184,1723029109251,-604.27,0.00036164,14]
[334400185,1723029109262,-500.0,0.00036164,14]
[334400186,1723029109272,-500.0,0.00036164,2]
[334400187,1723029109283,-1456.08,0.00036164,14]
[334400188,1723029109294,-500.0,0.00036164,14]
[334400189,1723029109305,-500.0,0.00036164,14]
[334400190,1723029109315,-968.66,0.00036164,14]
[334400191,1723029109326,-500.0,0.00036164,14]
[334400192,1723029109335,-1104.57,0.00036164,14]
[334400193,1723029109346,-785.13,0.00036164,14]
[334400194,1723029109358,-1000.35,0.00036164,14]
[334400195,1723029109369,-678.62,0.00036164,14]
[334400196,1723029109378,-2102.23,0.00036164,14]
[334400197,1723029109389,-1724.83,0.00036164,14]
[334400198,1723029109400,-786.56,0.00036164,14]
[334400199,1723029109409,-1026.47,0.00036164,14]
[334400200,1723029109420,-2410.79,0.00036164,14]
[334400201,1723029109430,-500.0,0.00036164,14]
[334400202,1723029109442,-1027.92,0.00036164,14]
[334400203,1723029109452,-572.28,0.00036164,14]
[334400204,1723029109461,-500.0,0.00036164,14]
[334400205,1723029109472,-827.4,0.00036164,14]
[334400206,1723029109482,-500.0,0.00036164,14]
[334400207,1723029109492,-1638.94,0.00036164,14]
[334400208,1723029109502,-2976.45,0.00036164,14]
[334400209,1723029109513,-728.06,0.00036164,14]
[334400210,1723029109524,-1275.04,0.00036164,14]
[334400211,1723029109534,-1187.93,0.00036164,14]
[334400212,1723029109544,-645.93,0.00036164,14]
[334400213,1723029109554,-1020.1,0.00036164,14]
[334400214,1723029109564,-500.0,0.00036164,14]
[334400215,1723029109574,-500.0,0.00036164,14]
[334400216,1723029109584,-581.74,0.00036164,14]
[334400217,1723029109594,-720.42,0.00036164,14]
[334400218,1723029109604,-923.4,0.00036164,14]
[334400219,1723029109614,-500.0,0.00036164,14]
[334400220,1723029109624,-534.66,0.00036164,14]
[334400221,1723029109634,-671.94,0.00036164,14]
[334400222,1723029109646,-548.72,0.00036164,14]
[334400223,1723029109656,-2664.41,0.00036164,14]
[334400224,1723029109667,-1512.23,0.00036164,14]
[334400225,1723029109678,-1144.37,0.00036164,14]
[334400226,1723029109689,-518.05,0.00036164,14]
[334400227,1723029109699,-1021.34,0.00036164,14]
[334400228,1723029109709,-500.0,0.00036164,14]
[334400229,1723029109719,-2148.85,0.00036164,14]
[334400230,1723029109730,-500.0,0.00036164,14]
[334400231,1723029109739,-1093.31,0.00036164,14]
[334400232,1723029109750,-496.57064488,0.00036164,14]
[334400233,1723029109760,-2807.44,0.00036164,14]
[334400234,1723029109770,-647.5,0.00036164,14]
[334400235,1723029109779,-972.5,0.00036164,14]
[334400236,1723029109789,-2896.75,0.00036164,14]
[334400237,1723029109799,-836.81,0.00036164,14]
[334400238,1723029109808,-621.33,0.00036164,14]
[334400239,1723029109818,-877.3,0.00036164,14]
[334400240,1723029109828,-500.0,0.00036164,14]
[334400241,1723029109838,-646.55,0.00036164,14]
[334400242,1723029109847,-519.26,0.00036164,14]
[334400243,1723029109857,-811.6,0.00036164,14]
[334400244,1723029109868,-3787.31,0.00036164,14]
[334400245,1723029109878,-676.38,0.00036164,14]
[334400246,1723029109887,-500.0,0.00036164,14]
[334400247,1723029109898,-1713.3,0.00036164,14]
[334400248,1723029109907,-710.82,0.00036164,14]
[334400249,1723029109916,-3403.09,0.00036164,14]
[334400250,1723029109925,-500.0,0.00036164,14]
[334400251,1723029109934,-8008.66,0.00036164,14]
[334400252,1723029109946,-500.0,0.00036164,14]
[334400253,1723029109957,-2652.65,0.00036164,14]
[334400254,1723029109968,-1695.73,0.00036164,14]
[334400255,1723029109980,-293.99843828,0.00036164,14]
[334400256,1723029109990,-676.41,0.00036164,14]
[334400257,1723029110000,-4726.18,0.00036164,14]
[334400258,1723029110011,-631.77,0.00036164,14]
[334400259,1723029110024,-765.56,0.00036164,14]
[334400260,1723029110034,-524.76,0.00036164,14]
[334400261,1723029110044,-500.0,0.00036164,14]
[334400262,1723029110054,-596.92,0.00036164,14]
[334400263,1723029110064,-2772.04,0.00036164,14]
[334400264,1723029110074,-872.47,0.00036164,14]
[334400265,1723029110087,-500.0,0.00036164,14]
[334400266,1723029110099,-165.57919191,0.00036164,14]
[334400267,1723029110109,-2850.24,0.00036164,14]
[334400268,1723029110120,-2368.38,0.00036164,14]
[334400269,1723029110135,-918.69,0.00036164,14]
[334400270,1723029110144,-1182.98,0.00036164,14]
[334400271,1723029110153,-787.24,0.00036164,14]
[334400272,1723029110162,-500.0,0.00036164,14]
[334400273,1723029110172,-500.0,0.00036164,14]
[334400274,1723029110182,-500.0,0.00036164,14]
[334400275,1723029110191,-748.79,0.00036164,14]
[334400276,1723029110201,-1373.61,0.00036164,14]
[334400277,1723029110210,-1732.44,0.00036164,14]
[334400278,1723029110219,-500.0,0.00036164,14]
[334400279,1723029110229,-705.51,0.00036164,14]
[334400280,1723029110238,-1008.03,0.00036164,14]
[334400281,1723029110248,-500.0,0.00036164,14]
[334400282,1723029110257,-5624.94,0.00036164,14]
[334400283,1723029110267,-4673.31,0.00036164,14]
[334400284,1723029110277,-2102.82,0.00036164,14]
[334400285,1723029110286,-683.38,0.00036164,14]
[334400286,1723029110296,-500.0,0.00036164,14]
[334400287,1723029110308,-500.0,0.00036164,14]
[334400288,1723029110319,-500.0,0.00036164,14]
[334400289,1723029110330,-1201.25,0.00036164,14]
[334400290,1723029110339,-5296.6,0.00036164,14]
[334400291,1723029110349,-500.0,0.00036164,14]
[334400292,1723029110359,-500.0,0.00036164,14]
[334400293,1723029110370,-754.45,0.00036164,14]
[334400294,1723029110380,-6120.77,0.00036164,14]
[334400295,1723029110391,-4115.44,0.00036164,14]
[334400296,1723029110402,-500.0,0.00036164,14]
[334400297,1723029110413,-1842.71250601,0.00036164,14]
[334400324,1723029620893,-932.3792312,0.00014147,2]
[334400325,1723029620925,-158.14235,0.00014247,2]
[334400326,1723029620944,-932.3792312,0.00021542,2]
[334400327,1723029620955,-158.14235,0.00021542,2]
[334400328,1723029620969,-624.9568376,0.00021542,2]
[334400329,1723029645428,-478.78844947,0.00021589,2]
[334400330,1723029645451,-478.78844947,0.00021589,2]
[334400331,1723029645467,-261.42310106,0.00021589,2]
[334400361,1723030151151,-165.707876,0.00014247,2]
[334400366,1723030177017,154.79103211,0.00017269,2]
[334400367,1723030182866,11.86710379,0.00017269,2]
[334400391,1723030234248,-158.114709,0.00014247,2]
[334400392,1723030234259,-459.65038958,0.00019477,4]
[334400393,1723030234270,-443.23639848,0.00019477,2]
[334400394,1723030234280,-157.06225992,0.00019547,2]
[334400395,1723030234292,-294.18278188,0.0002,2]
[334400396,1723030234303,-249.735164,0.00020713,2]
[334400397,1723030234313,-460.01309621,0.00020932,2]
[334400398,1723030234323,-309.21151064,0.00021542,2]
[334400399,1723030234334,-154.77557542,0.00021542,2]
[334400400,1723030234344,-300.0,0.00021588,2]
[334400401,1723030234354,-912.76636685,0.00021589,2]
[334400402,1723030234364,-664.23911189,0.00021589,2]
[334400403,1723030234374,-11191.80124053,0.00021589,2]
[334400404,1723030234386,-568.56884199,0.00021591,2]
[334400405,1723030234399,-166.09859939,0.00021599,4]
[334400406,1723030234409,-155.00974224,0.00021599,2]
[334400407,1723030234420,-154.77557542,0.00021599,2]
[334400408,1723030234430,-156.73199194,0.00021599,2]
[334400409,1723030234441,-506.48190828,0.00021602,2]
[334400410,1723030234450,-534.02405776,0.00021602,2]
[334400411,1723030234460,-203.07644341,0.00021602,2]
[334400412,1723030234472,-156.85069415,0.00021602,2]
[334400413,1723030234482,-154.82195475,0.00021609,2]
[334400414,1723030234491,-209.25602359,0.00021632,2]
[334400415,1723030234501,-296.9978574,0.00021632,2]
[334400416,1723030234511,-342.05014288,0.00021632,2]
[334400417,1723030234521,-154.69833824,0.00021642,2]
[334400418,1723030234531,-240.87977821,0.00021642,2]
[334400419,1723030234540,-435.0,0.00021805,2]
[334400420,1723030234550,-427.05357238,0.00021805,2]
[334400421,1723030234560,-109.38447671,0.00021906,2]
[334400451,1723030241029,-297.34440685,0.00017019,2]
[334400452,1723030241040,-1623.49034114,0.00021542,2]
[334400453,1723030241051,-709.64530844,0.00021602,2]
[334400454,1723030241062,-287.82937614,0.00021609,2]
[334400455,1723030241072,-250.0,0.00022304,2]
[334400456,1723030241083,-24900.0,0.00022339,2]
[334400457,1723030241093,-221.80541392,0.00026068,2]
[334400458,1723030241102,-160.54991199,0.00026158,2]
[334400459,1723030241113,-360.0,0.00026168,2]
[334400460,1723030241122,-158.114709,0.00026521,2]
[334400461,1723030241133,-402.49527553,0.00026569,2]
[334400462,1723030241142,-881.47696693,0.00026583,2]
[334400463,1723030241153,-1363.69574407,0.00026589,2]
[334400464,1723030241163,-221.80541389,0.00029249,2]
[334400465,1723030241172,-151.0,0.0003,120]
[334400466,1723030241182,-7800.66103905,0.0003,10]
[334400467,1723030241192,-158.0,0.0003,2]
[334400468,1723030241201,-200.0,0.00030137,2]
[334400469,1723030241211,-169.221072,0.00030736,2]
[334400470,1723030241221,-194.2539242,0.00031507,120]
[334400471,1723030241233,-4772.79287067,0.00032,30]
[334400472,1723030241244,-1062.1654236,0.000323,5]
[334400473,1723030241256,-183.576032,0.00032327,2]
[334400474,1723030241267,-221.80541389,0.00032431,2]
[334400475,1723030241277,-500.0,0.00032602,7]
[334400476,1723030241288,-162.02467368,0.00032775,2]
[334400477,1723030241299,-8557.58965902,0.00032776,5]
[334400478,1723030241310,-4025.0,0.000328,13]
[334400479,1723030241320,-1256.92,0.00032856,3]
[334400480,1723030241329,-1211.95,0.00032856,3]
[334400481,1723030241339,-500.0,0.00032865,2]
[334400482,1723030241348,-184.54582286,0.00032865,2]
[334400483,1723030241358,-500.0,0.00032865,2]
[334400484,1723030241367,-500.0,0.00032865,2]
[334400485,1723030241377,-500.0,0.00032865,2]
[334400486,1723030241387,-500.0,0.00032865,2]
[334400487,1723030241400,-500.0,0.00032865,2]
[334400488,1723030241409,-500.0,0.00032865,7]
[334400489,1723030241419,-3551.7757678,0.00032865,21]
[334400490,1723030241428,-13438.77377563,0.00032866,4]
[334400514,1723030243731,-9000.0,0.00032866,4]
[334400515,1723030243790,-31769.22123424,0.00032866,4]
[334400627,1723031441378,-161.96012,0.00014247,2]
[334400628,1723031441389,-158.114709,0.00014247,2]
[334400629,1723031441400,-240.81957697,0.00018945,2]
[334400630,1723031441411,-209.19959389,0.0001895,2]
[334400631,1723031441422,-247.06898408,0.00021599,2]
[334400632,1723031441433,-264.68735542,0.00021642,2]
[334400633,1723031441448,-759.45591968,0.00021916,2]
[334400634,1723031441459,-402.3465429,0.00025,2]
[334400635,1723031441471,-1363.69574407,0.00026579,2]
[334400636,1723031441482,-24900.0,0.0002934,2]
[334400637,1723031441493,-158.114709,0.00029589,2]
[334400638,1723031441505,-151.0,0.0003,120]
[334400639,1723031441515,-316.0,0.0003,2]
[334400640,1723031441526,-175.0,0.0003,2]
[334400642,1723031441536,-169.221072,0.00030078,2]
[334400643,1723031441546,-200.0,0.00030137,2]
[334400644,1723031441560,-194.2539242,0.00031507,120]
[334400645,1723031441571,-175.0,0.00031644,2]
[334400646,1723031441582,-151.0,0.00032287,7]
[334400647,1723031441594,-183.576032,0.00032327,2]
[334400648,1723031441605,-8557.58965902,0.00032776,5]
[334400649,1723031441617,-162.02467368,0.00032776,2]
[334400650,1723031441629,-271.4386735,0.00032797,2]
[334400651,1723031441640,-3000.0,0.000328,13]
[334400652,1723031441651,-3000.0,0.0003281,13]
[334400653,1723031441664,-4025.0,0.0003282,13]
[334400654,1723031441676,-255.415,0.00032854,2]
[334400655,1723031441687,-216.02,0.00032856,3]
[334400656,1723031441701,-648.08,0.00032856,3]
[334400657,1723031441713,-585.97318499,0.00032856,3]
[334400676,1723031442956,-157.27681501,0.00032856,3]
[334400677,1723031442967,-211.78573926,0.00032856,3]
[334400679,1723031443098,-6.7840866,0.00032856,3]
[334400738,1723031446070,-656.70949551,0.00032856,3]
[334400904,1723032638313,-158.114709,0.00014247,2]
[334400906,1723032638323,-161.96012,0.00014247,2]
[334400908,1723032638332,-1253.166471,0.000219,2]
[334401853,1723033691304,5098.10599582,0.00013,2]
[334401854,1723033700720,780.14345961,0.000125,2]
[334401855,1723033764142,-159.076061,0.00014247,2]
[334401935,1723033838732,-4499.28006189,0.000219,2]
[334401937,1723033838743,-313.20952962,0.000219,2]
[334401939,1723033838752,-484.86003005,0.00026375,2]
[334401941,1723033838762,-182.28089205,0.00026687,2]
[334401943,1723033838771,-574.91769939,0.00026688,2]
[334402211,1723033841698,-415.81466697,0.00026688,2]
[334402429,1723034967138,-413.60975836,0.00014147,2]
[334402508,1723035032622,-2644.18696957,0.00014147,2]
[334402509,1723035032634,-161.060513,0.00014247,2]
[334402510,1723035032648,-252.54924536,0.00024768,2]
[334402582,1723035042325,-24647.45075464,0.00024768,2]
[334402584,1723035042335,-164.3111324,0.00025083,2]
[334402586,1723035042345,-169.221072,0.00025645,2]
[334402588,1723035042355,-6432.91392094,0.00026688,2]
[334402590,1723035042364,-166.35406047,0.000269,2]
[334402592,1723035042375,-150.0,0.00027,10]
[334402594,1723035042386,-1495.91023064,0.00029124,15]
[334402596,1723035042396,-209.147045,0.00029644,2]
[334402599,1723035042406,-166.35406041,0.00029829,2]
[334402601,1723035042416,-630.18579065,0.000299,2]
[334402603,1723035042426,-216.02,0.0002999,3]
[334402605,1723035042436,-648.08,0.0002999,3]
[334402607,1723035042447,-741.68,0.0002999,3]
[334402609,1723035042458,-1158.01,0.0002999,3]
[334402611,1723035042469,-965.01,0.0002999,3]
[334402613,1723035042480,-804.18,0.0002999,3]
[334402615,1723035042490,-151.0,0.0002999,7]
[334402617,1723035042499,-151.0,0.0002999,7]
[334402619,1723035042509,-151.0,0.0002999,7]
[334402621,1723035042518,-233.36985,0.0002999,7]
[334402623,1723035042528,-151.0,0.0002999,7]
[334402625,1723035042537,-151.0,0.0002999,7]
[334402627,1723035042546,-151.0,0.0002999,7]
[334402629,1723035042556,-17587.8054336,0.0002999,4]
[334402631,1723035042565,-195.972484,0.0002999,7]
[334402633,1723035042574,-328.538979,0.0002999,7]
[334402635,1723035042583,-328.538979,0.0002999,7]
[334402637,1723035042594,-328.538979,0.0002999,7]
[334402639,1723035042603,-328.538979,0.0002999,7]
[334402641,1723035042614,-328.538979,0.0002999,7]
[334402643,1723035042623,-328.538979,0.0002999,7]
[334402645,1723035042632,-1828.6563,0.00029997,2]
[334402647,1723035042642,-168.403072,0.00029997,7]
[334402649,1723035042651,-500.0,0.00029999,2]
[334402651,1723035042661,-586.65918014,0.00029999,2]
[334402653,1723035042672,-500.0,0.00029999,2]
[334402655,1723035042681,-500.0,0.00029999,2]
[334402657,1723035042691,-500.0,0.00029999,2]
[334402659,1723035042700,-500.0,0.00029999,2]
[334402661,1723035042710,-500.0,0.00029999,2]
[334402663,1723035042719,-328.538979,0.00029999,7]
[334402665,1723035042730,-328.538979,0.00029999,7]
[334402667,1723035042740,-328.538979,0.00029999,7]
[334402669,1723035042750,-328.538979,0.00029999,7]
[334402671,1723035042760,-8551.7757678,0.0003,21]
[334402673,1723035042769,-151.0,0.0003,120]
[334402675,1723035042779,-437.97932699,0.0003,2]
[334402676,1723035042788,-7800.66103905,0.0003,10]
[334402678,1723035042798,-81717.66741629,0.0003,7]
[334402680,1723035042807,-150.112233,0.0003,10]
[334402682,1723035042818,-990.45974318,0.0003,4]
[334402684,1723035042827,-328.538979,0.0003,7]
[334402686,1723035042838,-328.538979,0.0003,7]
[334402688,1723035042848,-328.538979,0.0003,7]
[334402689,1723035042857,-328.538979,0.0003,7]
[334402690,1723035042868,-328.538979,0.0003,7]
[334402691,1723035042877,-328.538979,0.0003,7]
[334402692,1723035042887,-328.538979,0.0003,7]
[334402693,1723035042900,-328.538979,0.0003,7]
[334402694,1723035042910,-175.0,0.0003,2]
[334402695,1723035042919,-158.0,0.0003,2]
[334402696,1723035042928,-200.0,0.00030137,2]
[334402697,1723035042939,-153.0,0.00030603,2]
[334402698,1723035042950,-153.0,0.00030603,2]
[334402699,1723035042961,-153.0,0.00030603,2]
[334402700,1723035042973,-153.0,0.00030603,2]
[334402701,1723035042983,-630.18579061,0.00030619,2]
[334402702,1723035042993,-191.8,0.0003063,120]
[334402703,1723035043002,-271.4386735,0.00030795,2]
[334402704,1723035043011,-271.4386735,0.00030795,2]
[334402705,1723035043022,-1000.0,0.00031,31]
[334402706,1723035043033,-328.538979,0.00031,7]
[334402708,1723035043042,-328.538979,0.00031,7]
[334402709,1723035043054,-630.18579061,0.00031338,2]
[334402710,1723035043065,-432.04,0.0003136,3]
[334402711,1723035043076,-153.0,0.00031425,2]
[334402712,1723035043088,-306.0,0.00031425,2]
[334402714,1723035043098,-153.0,0.00031425,2]
[334402715,1723035043107,-153.0,0.00031425,2]
[334402716,1723035043118,-153.0,0.00031425,2]
[334402719,1723035043127,-153.0,0.00031425,2]
[334402722,1723035043137,-221.5089103,0.00031425,2]
[334402725,1723035043148,-150.0,0.00031458,2]
[334402727,1723035043158,-1410.0,0.00031458,2]
[334402730,1723035043167,-191.257932,0.00031507,120]
[334402733,1723035043177,-271.4386735,0.00031616,2]
[334402735,1723035043186,-542.877347,0.00031616,2]
[334402737,1723035043195,-175.0,0.00031644,2]
[334402739,1723035043205,-150.0,0.00031698,4]
[334402741,1723035043215,-150.112233,0.000317,6]
[334402743,1723035043224,-161.060513,0.00031781,2]
[334402746,1723035043235,-630.18579061,0.00032057,2]
[334402748,1723035043247,-151.0,0.00032285,7]
[334402750,1723035043258,-192971.03782054,0.000323,10]
[334403236,1723036111655,2621.75054457,0.00014,2]
[334403237,1723036111690,1230.03734543,0.00014,2]
[334403266,1723036232975,-248.608555,0.00014247,2]
[334403268,1723036232985,-161.060513,0.00014247,2]
[334403270,1723036232994,-154.79103211,0.00019477,2]
[334403272,1723036233003,-3242.19255673,0.000299,2]
[334403451,1723036239047,-2894.32885922,0.000299,2]
[334403453,1723036239059,-660.30649545,0.0003,4]
[334403456,1723036239069,-316.0,0.00030137,2]
[334403458,1723036239080,-200.0,0.00030137,2]
[334403460,1723036239091,-5000.0,0.00030137,2]
[334403462,1723036239101,-2753.5817744,0.00030137,2]
[334403705,1723036244051,-24.31745506,0.00030037,2]
[334403756,1723037432030,-161.060513,0.00014247,2]
[334403757,1723037432044,-2329.389487,0.00025,2]
[334403805,1723037440069,-2396.18950354,0.00025,2]
[334403806,1723037440080,-295.47338401,0.00025,2]
[334403807,1723037440091,-24900.0,0.00025747,2]
[334403808,1723037440102,-172.42424377,0.00026709,2]
[334403809,1723037440113,-402.49527553,0.00026769,2]
[334403810,1723037440123,-154.98358091,0.00026809,2]
[334403811,1723037440132,-172.42424375,0.00029665,2]
[334403812,1723037440142,-175.0,0.0003,2]
[334403813,1723037440154,-200.0,0.00030137,2]
[334403814,1723037440164,-542.877347,0.00030656,2]
[334403815,1723037440175,-542.877347,0.00030795,2]
[334403816,1723037440186,-4772.79287067,0.00031,30]
[334403817,1723037440196,-2490.45,0.00031,2]
[334403818,1723037440207,-192.755927,0.00031507,120]
[334403819,1723037440218,-5000.0,0.00031507,7]
[334403820,1723037440228,-5000.0,0.00031507,7]
[334403821,1723037440237,-3587.39878928,0.00031507,7]
[334403822,1723037440563,-1412.60121072,0.00031507,7]
[334403823,1723037440573,-2888.15478494,0.00031507,7]
[334403824,1723037440583,-371.49563309,0.00031519,7]
[334403839,1723037443048,-881.47696693,0.00026769,2]
[334403840,1723037443058,-3085.3351066,0.00031519,7]
[334403841,1723037443070,-611.40000014,0.00031519,7]
[334403948,1723038632126,-161.060513,0.00014247,2]
[334403949,1723038632136,-157.838299,0.00014247,2]
[334403951,1723038632147,-990.0,0.00025,2]
[334403953,1723038632157,-14789.63115525,0.00027853,2]
[334403984,1723038638686,-4015.69,0.00027853,2]
[334404584,1723039753114,-178.570121,0.00014247,2]
[334404585,1723039753137,-10.07428228,0.0002028,2]
[334404620,1723039833030,-361.26495074,0.0002028,2]
[334404622,1723039833042,-2481.08504926,0.00027887,2]
[334404624,1723039833055,-789.12834,0.00027887,2]
[334404628,1723039833098,-4584.00865888,0.00027887,2]
[334404783,1723039843460,-17045.77795186,0.00027887,2]
[334404785,1723039843470,-175.0,0.0003,2]
[334404787,1723039843479,-200.0,0.00030137,2]
[334404789,1723039843488,-150.01,0.00030999,2]
[334404791,1723039843498,-24696.84258871,0.00031144,21]
[334404793,1723039843509,-302.3825415,0.00031144,2]
[334404794,1723039843518,-153.0,0.00031144,2]
[334404796,1723039843529,-271.4386735,0.00031144,2]
[334404798,1723039843539,-229.8207795,0.00031144,2]